[Event "Late-Titled-Tuesday-Blitz-February-20-2024"]
[Site "Chess.com"]
[Date "2024.02.20"]
[Round "6"]
[White "TenisMaster"]
[Black "Firouzja2003"]
[Result "1-0"]
[WhiteElo "2981"]
[BlackElo "3100"]
[TimeControl "180+1"]
[EndTime "15:06:15 PST"]
[Termination "TenisMaster won on time"]

1. e4 {[%clk 0:03:00.9]} 1... e5 {[%clk 0:02:58.2]} 2. Nf3 {[%clk 0:03:00.6]}
2... Nc6 {[%clk 0:02:58.6]} 3. Bb5 {[%clk 0:03:00.5]} 3... a6 {[%clk 0:02:58.6]}
4. Ba4 {[%clk 0:03:00.5]} 4... Bc5 {[%clk 0:02:58.9]} 5. O-O {[%clk 0:02:55.4]}
5... Nge7 {[%clk 0:02:58]} 6. d3 {[%clk 0:02:50.4]} 6... d6 {[%clk 0:02:56.3]}
7. Be3 {[%clk 0:02:47.6]} 7... b5 {[%clk 0:02:49.9]} 8. Bb3 {[%clk 0:02:45.7]}
8... O-O {[%clk 0:02:50.6]} 9. a3 {[%clk 0:02:42.3]} 9... Ng6 {[%clk 0:02:50.4]}
10. Nbd2 {[%clk 0:02:38.7]} 10... Rb8 {[%clk 0:02:47.8]} 11. c3 {[%clk
0:02:34.2]} 11... h6 {[%clk 0:02:47.4]} 12. d4 {[%clk 0:02:31.6]} 12... Bb6
{[%clk 0:02:47.4]} 13. Re1 {[%clk 0:02:30.8]} 13... Qf6 {[%clk 0:02:47.3]} 14.
dxe5 {[%clk 0:02:17.8]} 14... dxe5 {[%clk 0:02:47.1]} 15. Bxb6 {[%clk
0:02:17.4]} 15... cxb6 {[%clk 0:02:39]} 16. g3 {[%clk 0:02:17.7]} 16... Bh3
{[%clk 0:02:32.6]} 17. Kh1 {[%clk 0:01:42.1]} 17... Rbd8 {[%clk 0:02:32.3]} 18.
Qe2 {[%clk 0:01:41]} 18... Rd6 {[%clk 0:02:32.4]} 19. Ng1 {[%clk 0:01:23.3]}
19... Bc8 {[%clk 0:02:32.2]} 20. Nf1 {[%clk 0:01:22.1]} 20... Na5 {[%clk
0:02:31.8]} 21. Ba2 {[%clk 0:01:20.8]} 21... Rfd8 {[%clk 0:02:30]} 22. Kg2
{[%clk 0:01:16.1]} 22... Qg5 {[%clk 0:02:24.7]} 23. Kh1 {[%clk 0:01:15]} 23...
Qf6 {[%clk 0:02:16.5]} 24. Kg2 {[%clk 0:01:13.2]} 24... Nc4 {[%clk 0:01:40.4]}
25. Bxc4 {[%clk 0:01:08.9]} 25... bxc4 {[%clk 0:01:41.3]} 26. Rad1 {[%clk
0:01:08.1]} 26... Qg5 {[%clk 0:01:34.8]} 27. Kh1 {[%clk 0:01:07.6]} 27... Rd3
{[%clk 0:01:26.7]} 28. Ne3 {[%clk 0:00:56.1]} 28... Bb7 {[%clk 0:01:19.8]} 29.
f3 {[%clk 0:00:53.8]} 29... b5 {[%clk 0:01:18.6]} 30. Nh3 {[%clk 0:00:45.2]}
30... Qh5 {[%clk 0:01:08.3]} 31. Nf2 {[%clk 0:00:43]} 31... Rxd1 {[%clk
0:00:53.4]} 32. Rxd1 {[%clk 0:00:43.9]} 32... Qg5 {[%clk 0:00:49.2]} 33. Rxd8+
{[%clk 0:00:30.9]} 33... Qxd8 {[%clk 0:00:50.1]} 34. Qd1 {[%clk 0:00:28.3]}
34... Qb6 {[%clk 0:00:47.4]} 35. Qd2 {[%clk 0:00:27.7]} 35... Nf8 {[%clk
0:00:47.7]} 36. Nfg4 {[%clk 0:00:25.8]} 36... f6 {[%clk 0:00:39.1]} 37. Nf5
{[%clk 0:00:25.9]} 37... h5 {[%clk 0:00:38.5]} 38. Ngh6+ {[%clk 0:00:20.5]}
38... gxh6 {[%clk 0:00:13.6]} 39. Qxh6 {[%clk 0:00:21.4]} 39... Qc7 {[%clk
0:00:14.2]} 40. Qxf6 {[%clk 0:00:20.7]} 40... Qd7 {[%clk 0:00:01.9]} 41. Ne7+
{[%clk 0:00:20.6]} 41... Kh7 {[%clk 0:00:02.8]} 42. Qf7+ {[%clk 0:00:20.4]}
42... Kh6 {[%clk 0:00:03.7]} 43. Qxf8+ {[%clk 0:00:19.9]} 1-0

[Event "Late-Titled-Tuesday-Blitz-February-20-2024"]
[Site "Chess.com"]
[Date "2024.02.20"]
[Round "6"]
[White "Chessdude1987"]
[Black "JonSnowNW1"]
[Result "0-1"]
[WhiteElo "2357"]
[BlackElo "2505"]
[TimeControl "180+1"]
[EndTime "15:06:16 PST"]
[Termination "JonSnowNW1 won by checkmate"]

1. e4 {[%clk 0:03:00.9]} 1... c5 {[%clk 0:02:59]} 2. Nf3 {[%clk 0:03:00.6]} 2...
d6 {[%clk 0:02:55.9]} 3. Bc4 {[%clk 0:02:58.8]} 3... Nf6 {[%clk 0:02:55.5]} 4.
d3 {[%clk 0:02:59.3]} 4... Nc6 {[%clk 0:02:55]} 5. c3 {[%clk 0:02:58.9]} 5... e6
{[%clk 0:02:55.1]} 6. Bb3 {[%clk 0:02:55.9]} 6... Be7 {[%clk 0:02:54.9]} 7. O-O
{[%clk 0:02:55.6]} 7... O-O {[%clk 0:02:54.1]} 8. Re1 {[%clk 0:02:55.8]} 8... d5
{[%clk 0:02:49.7]} 9. e5 {[%clk 0:02:55.2]} 9... Nd7 {[%clk 0:02:49.4]} 10. d4
{[%clk 0:02:55.3]} 10... cxd4 {[%clk 0:02:49.2]} 11. cxd4 {[%clk 0:02:55.1]}
11... b6 {[%clk 0:02:34.6]} 12. Nc3 {[%clk 0:02:54.4]} 12... Ba6 {[%clk
0:02:34.3]} 13. a3 {[%clk 0:02:51.7]} 13... Rc8 {[%clk 0:02:33.8]} 14. Bc2
{[%clk 0:02:48.8]} 14... Re8 {[%clk 0:02:25.2]} 15. g3 {[%clk 0:02:48.2]} 15...
Nf8 {[%clk 0:02:24.7]} 16. h4 {[%clk 0:02:48]} 16... Ng6 {[%clk 0:02:18.8]} 17.
h5 {[%clk 0:02:47.5]} 17... Nf8 {[%clk 0:02:18.9]} 18. Bf4 {[%clk 0:02:42.5]}
18... Na5 {[%clk 0:02:16.4]} 19. Nd2 {[%clk 0:02:07]} 19... Bg5 {[%clk
0:02:12.1]} 20. Qg4 {[%clk 0:02:01.2]} 20... Bxf4 {[%clk 0:02:12.1]} 21. gxf4
{[%clk 0:02:01.3]} 21... Nc4 {[%clk 0:02:03.3]} 22. Nxc4 {[%clk 0:02:00.9]}
22... Rxc4 {[%clk 0:02:02.4]} 23. Rad1 {[%clk 0:01:46]} 23... Rc7 {[%clk
0:01:59.5]} 24. Re3 {[%clk 0:01:45]} 24... f6 {[%clk 0:01:59]} 25. Rg3 {[%clk
0:01:27.8]} 25... f5 {[%clk 0:01:58.1]} 26. Qf3 {[%clk 0:01:22.6]} 26... Qh4
{[%clk 0:01:54.8]} 27. Kg2 {[%clk 0:01:20.8]} 27... h6 {[%clk 0:01:47.8]} 28.
Rh1 {[%clk 0:01:20]} 28... Qd8 {[%clk 0:01:47.5]} 29. Bb1 {[%clk 0:01:12.7]}
29... Nd7 {[%clk 0:01:39.7]} 30. Kh3 {[%clk 0:01:11]} 30... Qe7 {[%clk
0:01:36.9]} 31. Rhg1 {[%clk 0:01:10.6]} 31... Nf8 {[%clk 0:01:34]} 32. Nxd5
{[%clk 0:01:05.4]} 32... exd5 {[%clk 0:01:32]} 33. Qxd5+ {[%clk 0:01:05.1]}
33... Qe6 {[%clk 0:01:27.2]} 34. Qg2 {[%clk 0:00:54.2]} 34... Qf7 {[%clk
0:01:11.1]} 35. Rxg7+ {[%clk 0:00:41.4]} 35... Qxg7 {[%clk 0:01:10.4]} 36. Qh2
{[%clk 0:00:41.5]} 36... Kh8 {[%clk 0:01:08.6]} 37. Rxg7 {[%clk 0:00:39.6]}
37... Rxg7 {[%clk 0:01:09.4]} 38. Bxf5 {[%clk 0:00:39]} 38... Ne6 {[%clk
0:00:55.1]} 39. Bxe6 {[%clk 0:00:31.8]} 39... Rxe6 {[%clk 0:00:56]} 40. f5
{[%clk 0:00:31.7]} 40... Re8 {[%clk 0:00:55.3]} 41. e6 {[%clk 0:00:20.6]} 41...
Reg8 {[%clk 0:00:50.9]} 42. Qe5 {[%clk 0:00:20.1]} 42... Kh7 {[%clk 0:00:50.7]}
43. f6 {[%clk 0:00:19.6]} 43... Bf1+ {[%clk 0:00:50.1]} 44. Kh2 {[%clk
0:00:14.4]} 44... Rg2+ {[%clk 0:00:49.4]} 45. Kh1 {[%clk 0:00:10.6]} 45... Rg1+
{[%clk 0:00:49.9]} 46. Kh2 {[%clk 0:00:10.8]} 46... R8g2+ {[%clk 0:00:50.5]} 47.
Kh3 {[%clk 0:00:10.7]} 47... Rg3+ {[%clk 0:00:43.5]} 48. Kh4 {[%clk 0:00:07.1]}
48... Rh3# {[%clk 0:00:43.3]} 0-1

[Event "Late-Titled-Tuesday-Blitz-February-20-2024"]
[Site "Chess.com"]
[Date "2024.02.20"]
[Round "6"]
[White "esteban062000"]
[Black "s-dshubin"]
[Result "1/2-1/2"]
[WhiteElo "2170"]
[BlackElo "2343"]
[TimeControl "180+1"]
[EndTime "15:06:21 PST"]
[Termination "Game drawn - insufficient material"]

1. e4 {[%clk 0:03:00.9]} 1... e6 {[%clk 0:02:59.4]} 2. e5 {[%clk 0:03:00.3]}
2... d5 {[%clk 0:03:00.3]} 3. exd6 {[%clk 0:03:01.1]} 3... Bxd6 {[%clk 0:02:59]}
4. Nf3 {[%clk 0:03:00.5]} 4... Ne7 {[%clk 0:02:58.5]} 5. d4 {[%clk 0:03:01.1]}
5... O-O {[%clk 0:02:56.2]} 6. Nc3 {[%clk 0:03:00.8]} 6... c5 {[%clk 0:02:55.6]}
7. dxc5 {[%clk 0:02:49.6]} 7... Bxc5 {[%clk 0:02:56.5]} 8. Qxd8 {[%clk
0:02:49.3]} 8... Rxd8 {[%clk 0:02:56.8]} 9. Bd3 {[%clk 0:02:49.7]} 9... Nbc6
{[%clk 0:02:55.3]} 10. a3 {[%clk 0:02:49.5]} 10... a5 {[%clk 0:02:52.3]} 11. O-O
{[%clk 0:02:49]} 11... e5 {[%clk 0:02:52.3]} 12. Re1 {[%clk 0:02:41.8]} 12... f6
{[%clk 0:02:49.7]} 13. Na4 {[%clk 0:02:35.6]} 13... Ba7 {[%clk 0:02:47.3]} 14.
Be3 {[%clk 0:02:34]} 14... Bg4 {[%clk 0:02:39.2]} 15. Nd2 {[%clk 0:02:11.5]}
15... Bxe3 {[%clk 0:02:34.6]} 16. Rxe3 {[%clk 0:02:10.7]} 16... Nd5 {[%clk
0:02:34.4]} 17. Rg3 {[%clk 0:02:07.9]} 17... Bh5 {[%clk 0:02:24]} 18. Bc4 {[%clk
0:02:01]} 18... Bf7 {[%clk 0:02:16.6]} 19. Ne4 {[%clk 0:01:54.8]} 19... Nd4
{[%clk 0:02:12.8]} 20. c3 {[%clk 0:01:31.6]} 20... b5 {[%clk 0:01:59.5]} 21.
Bxd5 {[%clk 0:01:28.3]} 21... Bxd5 {[%clk 0:02:00.1]} 22. Nxf6+ {[%clk
0:01:27.9]} 22... Kf7 {[%clk 0:02:00.2]} 23. Nxd5 {[%clk 0:01:25.1]} 23... bxa4
{[%clk 0:01:57]} 24. cxd4 {[%clk 0:01:18.2]} 24... Rxd5 {[%clk 0:01:57.1]} 25.
dxe5 {[%clk 0:01:17.5]} 25... Rb8 {[%clk 0:01:50.6]} 26. e6+ {[%clk 0:01:12.9]}
26... Kxe6 {[%clk 0:01:49.2]} 27. Re1+ {[%clk 0:01:11]} 27... Kf6 {[%clk
0:01:45.2]} 28. Rf3+ {[%clk 0:01:10.5]} 28... Rf5 {[%clk 0:01:44.9]} 29. Rxf5+
{[%clk 0:01:05.1]} 29... Kxf5 {[%clk 0:01:45.8]} 30. Re2 {[%clk 0:01:05.3]}
30... g5 {[%clk 0:01:39.6]} 31. f3 {[%clk 0:01:03.8]} 31... h5 {[%clk
0:01:38.2]} 32. Kf2 {[%clk 0:01:03.7]} 32... Rb5 {[%clk 0:01:36.8]} 33. Rc2
{[%clk 0:00:58.8]} 33... Rd5 {[%clk 0:01:35.9]} 34. Ke3 {[%clk 0:00:54.6]} 34...
Re5+ {[%clk 0:01:36.1]} 35. Kf2 {[%clk 0:00:54.7]} 35... Rb5 {[%clk 0:01:30.7]}
36. Ke3 {[%clk 0:00:53.5]} 36... Re5+ {[%clk 0:01:29.5]} 37. Kf2 {[%clk
0:00:53.6]} 37... g4 {[%clk 0:01:29]} 38. fxg4+ {[%clk 0:00:50.8]} 38... hxg4
{[%clk 0:01:29.9]} 39. h3 {[%clk 0:00:48.9]} 39... gxh3 {[%clk 0:01:18.7]} 40.
gxh3 {[%clk 0:00:49.8]} 40... Rb5 {[%clk 0:01:13.4]} 41. Kg2 {[%clk 0:00:46.6]}
41... Rb3 {[%clk 0:01:10]} 42. Rc5+ {[%clk 0:00:38.6]} 42... Kf4 {[%clk
0:01:09.6]} 43. Rc4+ {[%clk 0:00:34.2]} 43... Ke3 {[%clk 0:01:02.7]} 44. Rc3+
{[%clk 0:00:28.4]} 44... Rxc3 {[%clk 0:01:02.2]} 45. bxc3 {[%clk 0:00:29.3]}
45... Kd3 {[%clk 0:01:02.8]} 46. h4 {[%clk 0:00:27.9]} 46... Kxc3 {[%clk
0:01:03.5]} 47. h5 {[%clk 0:00:28.4]} 47... Kb3 {[%clk 0:01:04]} 48. h6 {[%clk
0:00:28.8]} 48... Kxa3 {[%clk 0:01:04.9]} 49. h7 {[%clk 0:00:29.5]} 49... Ka2
{[%clk 0:01:02.8]} 50. h8=Q {[%clk 0:00:30.2]} 50... a3 {[%clk 0:01:03.3]} 51.
Qc3 {[%clk 0:00:20.5]} 51... a4 {[%clk 0:01:01.9]} 52. Qc2+ {[%clk 0:00:20.2]}
52... Ka1 {[%clk 0:01:01.5]} 53. Qxa4 {[%clk 0:00:20]} 53... a2 {[%clk
0:01:01.7]} 54. Qd4+ {[%clk 0:00:20.5]} 54... Kb1 {[%clk 0:01:01.8]} 55. Qb4+
{[%clk 0:00:20.6]} 55... Ka1 {[%clk 0:01:02]} 56. Qc3+ {[%clk 0:00:20.9]} 56...
Kb1 {[%clk 0:01:02.3]} 57. Qe1+ {[%clk 0:00:21]} 57... Kb2 {[%clk 0:01:02.4]}
58. Qe5+ {[%clk 0:00:21.1]} 58... Kb1 {[%clk 0:01:02.5]} 59. Qb5+ {[%clk
0:00:21.5]} 59... Ka1 {[%clk 0:01:02.7]} 60. Qa4 {[%clk 0:00:20.9]} 60... Kb1
{[%clk 0:01:02.7]} 61. Qb3+ {[%clk 0:00:21.2]} 61... Ka1 {[%clk 0:01:03.1]} 62.
Qc3+ {[%clk 0:00:10.9]} 62... Kb1 {[%clk 0:01:02.9]} 63. Qe1+ {[%clk 0:00:10.2]}
63... Kb2 {[%clk 0:01:03]} 64. Qe5+ {[%clk 0:00:09.5]} 64... Kb1 {[%clk
0:01:03.2]} 65. Kf2 {[%clk 0:00:09.8]} 65... a1=Q {[%clk 0:01:02.6]} 66. Qxa1+
{[%clk 0:00:10.5]} 66... Kxa1 {[%clk 0:01:01.2]} 1/2-1/2

[Event "Late-Titled-Tuesday-Blitz-February-20-2024"]
[Site "Chess.com"]
[Date "2024.02.20"]
[Round "6"]
[White "rezamahdavi2008"]
[Black "Jospem"]
[Result "0-1"]
[WhiteElo "2840"]
[BlackElo "3095"]
[TimeControl "180+1"]
[EndTime "15:06:26 PST"]
[Termination "Jospem won by resignation"]

1. d4 {[%clk 0:03:00.9]} 1... Nf6 {[%clk 0:02:59.4]} 2. Nf3 {[%clk 0:03:01.5]}
2... e6 {[%clk 0:02:59.8]} 3. c4 {[%clk 0:03:01.7]} 3... b6 {[%clk 0:03:00.5]}
4. g3 {[%clk 0:03:01.1]} 4... Bb7 {[%clk 0:03:01.1]} 5. Bg2 {[%clk 0:02:54.3]}
5... Bb4+ {[%clk 0:02:58]} 6. Bd2 {[%clk 0:02:54.8]} 6... Bxd2+ {[%clk
0:02:57.8]} 7. Qxd2 {[%clk 0:02:55.2]} 7... O-O {[%clk 0:02:58.1]} 8. Nc3 {[%clk
0:02:55]} 8... Ne4 {[%clk 0:02:57.3]} 9. Nxe4 {[%clk 0:02:50]} 9... Bxe4 {[%clk
0:02:58.2]} 10. O-O {[%clk 0:02:49.9]} 10... d6 {[%clk 0:02:58]} 11. Qf4 {[%clk
0:02:49.1]} 11... Bb7 {[%clk 0:02:55.9]} 12. e4 {[%clk 0:02:48.1]} 12... Nd7
{[%clk 0:02:56.2]} 13. Rfe1 {[%clk 0:02:45.1]} 13... Qe7 {[%clk 0:02:56.4]} 14.
e5 {[%clk 0:02:43.3]} 14... d5 {[%clk 0:02:49.4]} 15. Nd2 {[%clk 0:02:38.6]}
15... Rfe8 {[%clk 0:02:47.8]} 16. Rac1 {[%clk 0:02:36.2]} 16... c5 {[%clk
0:02:47.2]} 17. h4 {[%clk 0:02:33]} 17... Nf8 {[%clk 0:02:41.7]} 18. h5 {[%clk
0:02:32.9]} 18... h6 {[%clk 0:02:41.6]} 19. Red1 {[%clk 0:02:32.9]} 19... Rac8
{[%clk 0:02:40.3]} 20. Nb3 {[%clk 0:02:30.1]} 20... dxc4 {[%clk 0:02:36.8]} 21.
Rxc4 {[%clk 0:02:31]} 21... Bd5 {[%clk 0:02:28.4]} 22. Rc3 {[%clk 0:02:30]}
22... c4 {[%clk 0:02:22.8]} 23. Nd2 {[%clk 0:02:29.9]} 23... b5 {[%clk
0:02:23.5]} 24. Ne4 {[%clk 0:02:29.5]} 24... Bxe4 {[%clk 0:02:20.4]} 25. Bxe4
{[%clk 0:02:30.4]} 25... Red8 {[%clk 0:02:20.7]} 26. Rf3 {[%clk 0:02:22.9]}
26... Rc7 {[%clk 0:02:16.6]} 27. Kg2 {[%clk 0:02:22.2]} 27... b4 {[%clk
0:02:12.2]} 28. d5 {[%clk 0:02:19.8]} 28... exd5 {[%clk 0:02:08.5]} 29. Rxd5
{[%clk 0:02:14.9]} 29... Ne6 {[%clk 0:02:03.8]} 30. Qd2 {[%clk 0:02:05.7]} 30...
Rdc8 {[%clk 0:01:45.5]} 31. Re3 {[%clk 0:02:00.7]} 31... c3 {[%clk 0:01:43.4]}
32. bxc3 {[%clk 0:02:01]} 32... bxc3 {[%clk 0:01:43.3]} 33. Qc2 {[%clk
0:02:01.4]} 33... Qg5 {[%clk 0:01:38.5]} 34. Rf3 {[%clk 0:01:34.3]} 34... Qe7
{[%clk 0:01:34.8]} 35. Rfd3 {[%clk 0:01:29.4]} 35... Nf8 {[%clk 0:01:13.7]} 36.
f4 {[%clk 0:01:27.9]} 36... Qb4 {[%clk 0:01:03.1]} 37. R3d4 {[%clk 0:01:28.1]}
37... Qe7 {[%clk 0:01:01.2]} 38. Kh3 {[%clk 0:01:16.4]} 38... Ne6 {[%clk
0:00:58.6]} 39. Rd3 {[%clk 0:01:14.7]} 39... Qb4 {[%clk 0:00:52.6]} 40. Bf5
{[%clk 0:01:11.8]} 40... Qe7 {[%clk 0:00:46.3]} 41. Rd6 {[%clk 0:01:11.7]} 41...
a5 {[%clk 0:00:37.1]} 42. a4 {[%clk 0:01:09.6]} 42... Qe8 {[%clk 0:00:35]} 43.
R3d5 {[%clk 0:01:08.2]} 43... Rc4 {[%clk 0:00:33.2]} 44. Rxa5 {[%clk 0:00:57.1]}
44... Nd4 {[%clk 0:00:31.4]} 45. Rxd4 {[%clk 0:00:23.7]} 45... Rxd4 {[%clk
0:00:32.3]} 46. Bxc8 {[%clk 0:00:08.2]} 46... Qxc8+ {[%clk 0:00:33.2]} 47. f5
{[%clk 0:00:08.8]} 47... Rd2 {[%clk 0:00:32.7]} 48. Qe4 {[%clk 0:00:09.3]} 48...
c2 {[%clk 0:00:32.8]} 49. Ra8 {[%clk 0:00:07.6]} 49... c1=Q {[%clk 0:00:32.8]}
50. Rxc8+ {[%clk 0:00:08.1]} 50... Qxc8 {[%clk 0:00:33.7]} 51. a5 {[%clk
0:00:08.1]} 51... Qc2 {[%clk 0:00:27.9]} 0-1

[Event "Late-Titled-Tuesday-Blitz-February-20-2024"]
[Site "Chess.com"]
[Date "2024.02.20"]
[Round "6"]
[White "aistrel"]
[Black "GothamChess"]
[Result "1-0"]
[WhiteElo "2548"]
[BlackElo "2684"]
[TimeControl "180+1"]
[EndTime "15:06:30 PST"]
[Termination "aistrel won by resignation"]

1. d4 {[%clk 0:02:59.1]} 1... f5 {[%clk 0:02:57.1]} 2. Nc3 {[%clk 0:02:58.3]}
2... Nf6 {[%clk 0:02:56.7]} 3. Bf4 {[%clk 0:02:58.1]} 3... e6 {[%clk 0:02:53.2]}
4. f3 {[%clk 0:02:56.6]} 4... Bb4 {[%clk 0:02:53]} 5. e3 {[%clk 0:02:47.8]} 5...
Nd5 {[%clk 0:02:51.9]} 6. Ne2 {[%clk 0:02:47.6]} 6... g5 {[%clk 0:02:24.4]} 7.
Be5 {[%clk 0:02:41.1]} 7... Rg8 {[%clk 0:02:22.7]} 8. e4 {[%clk 0:02:37.3]} 8...
Ne3 {[%clk 0:02:20.7]} 9. Qd3 {[%clk 0:02:08.4]} 9... f4 {[%clk 0:02:19.9]} 10.
d5 {[%clk 0:02:01.9]} 10... d6 {[%clk 0:02:13.1]} 11. Bd4 {[%clk 0:02:00.9]}
11... Bxc3+ {[%clk 0:01:25.3]} 12. Nxc3 {[%clk 0:01:57.2]} 12... Nxf1 {[%clk
0:01:23.8]} 13. Rxf1 {[%clk 0:01:58.1]} 13... e5 {[%clk 0:01:23.5]} 14. Bf2
{[%clk 0:01:56.9]} 14... a6 {[%clk 0:01:18.4]} 15. g4 {[%clk 0:01:24.2]} 15...
fxg3 {[%clk 0:01:13.5]} 16. hxg3 {[%clk 0:01:25.1]} 16... h5 {[%clk 0:01:13.2]}
17. O-O-O {[%clk 0:01:24.4]} 17... Qf6 {[%clk 0:01:10.9]} 18. Kb1 {[%clk
0:01:06.7]} 18... b5 {[%clk 0:01:03.9]} 19. f4 {[%clk 0:01:01.9]} 19... Nd7
{[%clk 0:00:36]} 20. Be3 {[%clk 0:00:36.9]} 20... g4 {[%clk 0:00:28]} 21. fxe5
{[%clk 0:00:32.6]} 21... Qxe5 {[%clk 0:00:28.4]} 22. Bd4 {[%clk 0:00:28.2]}
22... Qg5 {[%clk 0:00:26.5]} 23. e5 {[%clk 0:00:27.1]} 23... dxe5 {[%clk
0:00:20.3]} 24. Rde1 {[%clk 0:00:20.1]} 24... Bb7 {[%clk 0:00:20.3]} 25. Rf5
{[%clk 0:00:14]} 25... Qg6 {[%clk 0:00:20.9]} 26. Rfxe5+ {[%clk 0:00:07.6]}
26... Nxe5 {[%clk 0:00:19.1]} 27. Rxe5+ {[%clk 0:00:08.5]} 27... Kd7 {[%clk
0:00:18.3]} 28. Ne4 {[%clk 0:00:09.4]} 28... Rae8 {[%clk 0:00:14.1]} 29. Nc5+
{[%clk 0:00:05.8]} 29... Kd8 {[%clk 0:00:14.3]} 30. Nxb7+ {[%clk 0:00:05.5]}
30... Kd7 {[%clk 0:00:14.9]} 31. Nc5+ {[%clk 0:00:04.7]} 31... Kd8 {[%clk
0:00:15.4]} 32. Ne6+ {[%clk 0:00:05.1]} 32... Kc8 {[%clk 0:00:15.6]} 33. Qc3
{[%clk 0:00:05.5]} 33... Qf7 {[%clk 0:00:15]} 34. b3 {[%clk 0:00:05.5]} 34... h4
{[%clk 0:00:14.3]} 35. Rf5 {[%clk 0:00:06]} 35... Qd7 {[%clk 0:00:13.9]} 36. Be5
{[%clk 0:00:06.3]} 36... h3 {[%clk 0:00:12]} 37. Bxc7 {[%clk 0:00:05.3]} 37...
h2 {[%clk 0:00:10.7]} 38. Bd6+ {[%clk 0:00:05]} 38... Kb7 {[%clk 0:00:09.4]} 39.
Nc5+ {[%clk 0:00:05.6]} 39... Ka8 {[%clk 0:00:10.1]} 40. Nxd7 {[%clk 0:00:06.5]}
40... h1=Q+ {[%clk 0:00:10]} 41. Kb2 {[%clk 0:00:06.8]} 41... Rc8 {[%clk
0:00:07.2]} 42. Nb6+ {[%clk 0:00:07.3]} 42... Kb7 {[%clk 0:00:07.8]} 43. Nxc8
{[%clk 0:00:08.2]} 43... Rxc8 {[%clk 0:00:07.8]} 44. Rf7+ {[%clk 0:00:07.9]} 1-0

[Event "Late-Titled-Tuesday-Blitz-February-20-2024"]
[Site "Chess.com"]
[Date "2024.02.20"]
[Round "6"]
[White "gmtalentoso"]
[Black "rikchessmx"]
[Result "1-0"]
[WhiteElo "2465"]
[BlackElo "2233"]
[TimeControl "180+1"]
[EndTime "15:06:31 PST"]
[Termination "gmtalentoso won by resignation"]

1. e4 {[%clk 0:02:56.5]} 1... e5 {[%clk 0:02:56.1]} 2. Nf3 {[%clk 0:02:56.2]}
2... c6 {[%clk 0:02:54.6]} 3. g3 {[%clk 0:02:53.4]} 3... d6 {[%clk 0:02:52.8]}
4. Bg2 {[%clk 0:02:53.3]} 4... Be6 {[%clk 0:02:50.6]} 5. O-O {[%clk 0:02:53.4]}
5... Qd7 {[%clk 0:02:50.5]} 6. d4 {[%clk 0:02:50.3]} 6... f6 {[%clk 0:02:50.2]}
7. Re1 {[%clk 0:02:43.4]} 7... Bh3 {[%clk 0:02:49.3]} 8. Bh1 {[%clk 0:02:42.8]}
8... h5 {[%clk 0:02:44.1]} 9. dxe5 {[%clk 0:02:35.9]} 9... dxe5 {[%clk 0:02:40]}
10. Qxd7+ {[%clk 0:02:26.8]} 10... Nxd7 {[%clk 0:02:39.1]} 11. Nh4 {[%clk
0:02:23.1]} 11... Ne7 {[%clk 0:02:32]} 12. Be3 {[%clk 0:02:18.7]} 12... g5
{[%clk 0:02:31.7]} 13. Nf3 {[%clk 0:02:14.9]} 13... Nc8 {[%clk 0:02:25.7]} 14.
Nbd2 {[%clk 0:02:12.3]} 14... Bc5 {[%clk 0:02:24.6]} 15. Rad1 {[%clk 0:02:07.1]}
15... Ncb6 {[%clk 0:02:23.6]} 16. a3 {[%clk 0:02:03.9]} 16... O-O-O {[%clk
0:02:21.7]} 17. b4 {[%clk 0:01:55.8]} 17... Bxe3 {[%clk 0:02:18.3]} 18. Rxe3
{[%clk 0:01:56.7]} 18... Nf8 {[%clk 0:02:15.5]} 19. Bg2 {[%clk 0:01:55.4]} 19...
Bxg2 {[%clk 0:02:14.4]} 20. Kxg2 {[%clk 0:01:53.2]} 20... g4 {[%clk 0:02:12.3]}
21. Nh4 {[%clk 0:01:47.2]} 21... Ne6 {[%clk 0:02:11.5]} 22. Nf5 {[%clk
0:01:29.4]} 22... a6 {[%clk 0:01:57.7]} 23. Rd3 {[%clk 0:01:21.2]} 23... Kc7
{[%clk 0:01:49.2]} 24. Nb3 {[%clk 0:01:19.5]} 24... Nc4 {[%clk 0:01:46.3]} 25.
Nc5 {[%clk 0:01:11.8]} 25... Nxc5 {[%clk 0:01:42.6]} 26. bxc5 {[%clk 0:01:12.7]}
26... Nxa3 {[%clk 0:01:36.5]} 27. Ng7 {[%clk 0:01:02.6]} 27... Rxd3 {[%clk
0:01:34.7]} 28. Rxd3 {[%clk 0:00:58.9]} 28... Nb5 {[%clk 0:01:29.6]} 29. h3
{[%clk 0:00:47.9]} 29... a5 {[%clk 0:01:17.4]} 30. hxg4 {[%clk 0:00:44.2]} 30...
hxg4 {[%clk 0:01:16.6]} 31. f3 {[%clk 0:00:44.4]} 31... gxf3+ {[%clk 0:01:16.3]}
32. Rxf3 {[%clk 0:00:44.1]} 32... a4 {[%clk 0:01:17.2]} 33. c4 {[%clk
0:00:39.9]} 33... Nd4 {[%clk 0:01:15.7]} 34. Rxf6 {[%clk 0:00:39.8]} 34... Rh7
{[%clk 0:01:01.3]} 35. Ne8+ {[%clk 0:00:31.6]} 35... Kb8 {[%clk 0:00:58.9]} 36.
Rf8 {[%clk 0:00:30.3]} 36... a3 {[%clk 0:00:45.4]} 37. Nf6+ {[%clk 0:00:17.7]}
37... Ka7 {[%clk 0:00:42.5]} 38. Nxh7 {[%clk 0:00:18.6]} 38... a2 {[%clk
0:00:42]} 39. Rf1 {[%clk 0:00:18.6]} 39... Nc2 {[%clk 0:00:41.4]} 40. Rc1 {[%clk
0:00:15]} 40... a1=Q {[%clk 0:00:41]} 41. Rxa1+ {[%clk 0:00:15.4]} 41... Nxa1
{[%clk 0:00:41.8]} 42. g4 {[%clk 0:00:15.9]} 42... Nc2 {[%clk 0:00:42.4]} 43. g5
{[%clk 0:00:12.7]} 43... Ne3+ {[%clk 0:00:42.9]} 44. Kg3 {[%clk 0:00:12.6]}
44... Nxc4 {[%clk 0:00:43]} 45. g6 {[%clk 0:00:12.7]} 45... Nd2 {[%clk
0:00:41.2]} 46. Kg4 {[%clk 0:00:10.4]} 46... Nxe4 {[%clk 0:00:41.2]} 47. g7
{[%clk 0:00:10.7]} 47... Nxc5 {[%clk 0:00:41.4]} 48. g8=Q {[%clk 0:00:11]} 48...
Kb6 {[%clk 0:00:40.1]} 49. Qd8+ {[%clk 0:00:11]} 49... Kb5 {[%clk 0:00:39.5]}
50. Nf6 {[%clk 0:00:10.7]} 50... e4 {[%clk 0:00:36.7]} 51. Nxe4 {[%clk
0:00:09.3]} 51... Ne6 {[%clk 0:00:32.9]} 52. Qd3+ {[%clk 0:00:08.9]} 52... Kb6
{[%clk 0:00:31.6]} 53. Qb3+ {[%clk 0:00:08.5]} 53... Kc7 {[%clk 0:00:30.2]} 54.
Qxe6 {[%clk 0:00:09.2]} 1-0